Cogmind - Beta 13 @@@ ROGUE MODE // 2024.04.16 @ 23:08:18 Player: SVIT13 Result: Destroyed by GN-V7H(R) with Subdweller Machine Gun Performance ------------- Evolutions (0) 0 Regions Visited (3) 600 Robots Destroyed (28) 140 Value Destroyed (777) 777 Prototype IDs (0) 0 Alien Tech Used (0) 0 Bonus (0) 0 TOTAL SCORE: 1517 Bonus ------- None Cogmind --------- Core Integrity 0/250 Matter 255/300 Energy 150/150 System Corruption 0% Temperature Cool (42) Movement Treading (157) Location -10/Subcaves Parts ------- > --- POWER (1) -------- Light Angular Momentum Engine > --- PROPULSION (2) --- Armored Treads Advanced Treads > --- UTILITY (2) ------ Large Storage Unit Improved Light Armor Plating > --- WEAPON (2) ------- Beamcaster Beamcaster > --- INVENTORY (15) --- Ion Engine Light Ion Engine Light Treads Light Treads Carbon-fiber Leg Carbon-fiber Leg Carbon-fiber Leg Cryofiber Web Improved Heat Sink Large Storage Unit Subdweller Optics Grenade Launcher Mining Laser Peak State ------------ > --- POWER ------------ Light Angular Momentum Engine > --- PROPULSION ------- Armored Treads Advanced Treads > --- UTILITY ---------- Large Storage Unit Improved Light Armor Plating > --- WEAPON ----------- Beamcaster Beamcaster > --- INVENTORY -------- Ion Engine Light Ion Engine Light Treads Light Treads Carbon-fiber Leg Carbon-fiber Leg Carbon-fiber Leg Cryofiber Web Improved Heat Sink Large Storage Unit Subdweller Optics Improved Terrain Scanner Missile Launcher Mining Laser Hammer [Rating: 28] Favorites ----------- Power Light Ion Engine Engine Light Ion Engine Propulsion Armored Treads Treads Armored Treads Wheel Wheel Utility Large Storage Unit Storage Large Storage Unit Processor Targeting Computer Protection Improved Light Armor Plating Weapon Beamcaster Energy Gun Beamcaster Ballistic Gun Assault Rifle Ballistic Cannon Light Cannon Launcher Missile Launcher Special Weapon Mining Laser Build | -11 -10 -10 -10 ------- Run | Yrd Mat Min Sub Slots Evolved . | . . . . Power . | . . . . Propulsion . | . . . . Utility . | . . . . Weapon . | . . . . Parts Attached 33 | 6 5 18 4 Power 3 | 1 . 2 . Engine 3 | 1 . 2 . Core . | . . . . Reactor . | . . . . Propulsion 7 | 2 . 5 . Treads 5 | 1 . 4 . Leg . | . . . . Wheel 2 | 1 . 1 . Hover . | . . . . Flight . | . . . . Utility 5 | 1 2 2 . Device . | . . . . Storage 2 | 1 1 . . Processor 1 | . 1 . . Hackware . | . . . . Protection 2 | . . 2 . Artifact . | . . . . Weapon 18 | 2 3 9 4 Energy Gun 6 | 1 . 3 2 Energy Cannon . | . . . . Ballistic Gun 4 | 1 1 2 . Ballistic Cannon 1 | . 1 . . Launcher 6 | . 1 3 2 Special Weapon 1 | . . 1 . Impact Weapon . | . . . . Slashing Weapon . | . . . . Piercing Weapon . | . . . . Special Melee Weapon . | . . . . Unidentified Prototypes . | . . . . Parts Lost 8 | . . 7 1 Power 1 | . . 1 . Propulsion 2 | . . 2 . Utility 1 | . . 1 . Weapon 4 | . . 3 1 Highest Loss Streak 5 | . . 5 1 To Critical Strikes . | . . . . Average Slot Usage (%) 98 | . 95 98 99 Engine 13 | . 14 13 14 Treads 25 | . 14 27 28 Wheel 2 | . 14 . . Storage 14 | . 14 14 14 Processor 1 | . 9 . . Protection 11 | . . 13 14 Energy Gun 15 | . 9 15 17 Ballistic Gun 2 | . 7 2 . Ballistic Cannon 1 | . 4 1 . Launcher 8 | . 6 7 10 Naked Turns . | . . . . Heaviest Build 43 | 13 30 43 43 Greatest Support 42 | 10 10 42 42 Greatest Overweight (x) 3 | 1 2 3 1 Average Overweight (x) . | . 1 . . Largest Inventory Capacity 15 | 8 15 15 15 Average Capacity 14 | 6 10 15 15 Most Carried 15 | 4 8 15 15 Average Carried 10 | 1 5 11 14 Final Capacity 15 | 8 15 15 15 Final Carried 14 | 2 8 14 13 Class Distribution -------------------- 100% | Mutant Dominant Class ---------------- Mutant | -10/Materials Mutant | -10/Mines Mutant | -10/Subcaves Resources | -11 -10 -10 -10 ----------- Run | Yrd Mat Min Sub Matter Collected 875 | 212 231 269 163 Remotely . | . . . . Salvage Created 547 | . 308 83 156 Parts 44 | . 24 7 13 Haulers Intercepted . | . . . . Recyclers Shooed . | . . . . Parts Field Recycled . | . . . . Retrieved Matter . | . . . . Parts Self-Destructed 7 | . . . 7 Prevented . | . . . . Kills | -11 -10 -10 -10 ------- Run | Yrd Mat Min Sub Combat Hostiles Destroyed 30 | . 13 8 9 Guns 13 | . 4 5 4 Cannons 4 | . 2 2 . AOE 13 | . 7 1 5 Classes Destroyed 6 | . 3 2 1 Operator 1 | . 1 . . Swarmer 11 | . 5 3 3 Grunt 8 | . 8 . . Demolisher 2 | . . 2 . Subdweller 6 | . . . 6 Assembled 3 | . . 3 . Best Kill Streak 5 | . 4 3 5 Combat Bots Only 5 | . 3 3 5 Max Kills in Single Turn 3 | . 3 1 1 Gunslinging . | . . . . Exploded 3 | . 3 1 1 Melee . | . . . . Uniques/NPCs Destroyed . | . . . . Combat | -11 -10 -10 -10 -------- Run | Yrd Mat Min Sub Hostile Shots Fired 130 | . 26 52 52 Missed 32 | . 10 8 14 Damage Taken 1561 | . 184 900 477 Core 258 | . 11 204 43 Absorbed by Shields . | . . . . Redirected to Shielding 13 | . . 13 . Core Remaining (%) 100 | 100 . . . Volleys Fired 79 | . 23 32 24 Largest 2 | . 2 2 2 Hottest 150 | . 70 115 150 Shots Fired 135 | . 41 48 46 Gun 98 | . 28 35 35 Cannon 13 | . 6 7 . Launcher 24 | . 7 6 11 Special . | . . . . Kinetic 48 | . 19 29 . Thermal 63 | . 15 13 35 Explosive 24 | . 7 6 11 Electromagnetic . | . . . . Robot Hit Streak 9 | . 8 6 9 Robot Miss Streak 6 | . 4 5 6 Penetration Max . | . . . . Secondary Targets 1 | . . . 1 Max Gunslinging Chain 1 | . . . 1 Shots Hit Robots 72 | . 22 24 26 Core Hits 47 | . 20 14 13 Critical Kills . | . . . . Critical Parts Destroyed . | . . . . Critical Strikes . | . . . . Melee Attacks . | . . . . Impact . | . . . . Slashing . | . . . . Piercing . | . . . . Sneak Attacks . | . . . . Combat Hostiles . | . . . . Follow-up Attacks . | . . . . Damage Inflicted 2469 | . 838 429 1202 Guns 800 | . 212 214 374 Cannons 152 | . 70 82 . Explosions 1517 | . 556 133 828 Melee . | . . . . Ramming . | . . . . Kinetic 426 | . 203 223 . Thermal 526 | . 79 73 374 Explosive 1517 | . 556 133 828 Electromagnetic . | . . . . Impact . | . . . . Slashing . | . . . . Piercing . | . . . . Highest Corruption . | . . . . Average Corruption . | . . . . Corruption Purged . | . . . . Corruption Blocked . | . . . . Overload Shots . | . . . . Overflow Damage 33 | . . 14 19 Projectiles . | . . . . Explosions 33 | . . 14 19 Melee . | . . . . Knockbacks 2 | . . 2 . Impact . | . . . . Kinetic 2 | . . 2 . Secondary . | . . . . Self-Inflicted Damage 85 | . 14 . 71 Shots 3 | . 1 . 2 Rammed . | . . . . Targets Rammed . | . . . . Kicked . | . . . . Crushed . | . . . . Highest Temperature 252 | . 51 108 252 Average Temperature 42 | . 19 34 61 Received Heat Transfer 108 | . 90 . 18 Siege Activations . | . . . . Robots Corrupted . | . . . . Combat Hostiles . | . . . . Parts Fried . | . . . . Impact Corruptions . | . . . . Robots Melted . | . . . . Combat Hostiles . | . . . . Parts Melted . | . . . . Heat Transferred 1003 | . 175 162 666 Parts Sabotaged . | . . . . Parts Stolen . | . . . . Parts Stripped . | . . . . Power Chain Reactions . | . . . . Alert | -11 -10 -10 -10 ------- Run | Yrd Mat Min Sub Peak Influence 386 | . 386 202 . Initial 150 | . . 150 . Average 81 | . 227 50 . Maximum Alert Level 1 | . 1 1 . Low Security (%) 75 | 100 36 84 . Level 1 24 | . 63 15 . Level 2 . | . . . . Level 3 . | . . . . Level 4 . | . . . . Level 5 . | . . . . High Security . | . . . . Max Security . | . . . . Squads Dispatched 2 | . 2 . . Investigation 1 | . 1 . . Extermination . | . . . . Reinforcement 1 | . 1 . . Assault . | . . . . Garrison . | . . . . Intercept . | . . . . Searches Triggered . | . . . . Construction Impeded . | . . . . Haulers Reinforced . | . . . . Active Scanning Responses . | . . . . Cargo Convoy Interrupts . | . . . . Stealth | -11 -10 -10 -10 --------- Run | Yrd Mat Min Sub Distress Signals . | . . . . Communications Jammed . | . . . . Distress Signals . | . . . . Times Spotted 41 | . 16 10 15 Peak Tracking Total 3 | . 3 3 3 Tactical Retreats 4 | . . 2 2 Traps | -11 -10 -10 -10 ------- Run | Yrd Mat Min Sub Traps Triggered 2 | . 1 1 . Indirectly . | . . . . Trap Hack Attempts . | . . . . Triggered . | . . . . Disarmed . | . . . . Reprogrammed . | . . . . Reused . | . . . . Traps Extracted . | . . . . Installed . | . . . . Triggered . | . . . . Machines | -11 -10 -10 -10 ---------- Run | Yrd Mat Min Sub Machines Disabled 3 | . 2 . 1 Max in Single Turn 1 | . 1 . 1 Machines Repaired . | . . . . Machines Dismantled . | . . . . Machines Sabotaged . | . . . . Overloaded Fab Kills . | . . . . Hacking | -11 -10 -10 -10 --------- Run | Yrd Mat Min Sub Machines Accessed 2 | . 1 1 . Terminals 1 | . 1 . . Fabricators . | . . . . Repair Stations . | . . . . Recycling Units . | . . . . Scanalyzers . | . . . . Garrison Access . | . . . . Total Hacks 5 | . 4 1 . Successful 3 | . 2 1 . Failed 2 | . 2 . . Catastrophic . | . . . . Database Lockouts . | . . . . Manual . | . . . . Terminals 4 | . 4 . . Fabricators . | . . . . Repair Stations . | . . . . Recycling Units . | . . . . Scanalyzers . | . . . . Garrison Access . | . . . . Terminal Hacks 3 | . 2 1 . Open Door 1 | . . 1 . Alert Level 1 | . 1 . . Zone Layout 1 | . 1 . . Fabricator Hacks . | . . . . Repair Station Hacks . | . . . . Recycling Unit Hacks . | . . . . Scanalyzer . | . . . . Garrison Access Hacks . | . . . . Unauthorized Hacks . | . . . . Terminals . | . . . . Fabricators . | . . . . Repair Stations . | . . . . Recycling Units . | . . . . Scanalyzers . | . . . . Garrison Access . | . . . . Data Cores Recovered . | . . . . Used . | . . . . Hacking Detections 1 | . 1 . . Full Trace Events . | . . . . Feedback Events . | . . . . Feedback Blocked . | . . . . Robot Schematics Acquired . | . . . . Robots Built . | . . . . Authchips . | . . . . Time . | . . . . Total Robot Build Rating . | . . . . Part Schematics Acquired . | . . . . Parts Built . | . . . . Authchips . | . . . . Time . | . . . . Total Part Build Rating . | . . . . Parts Repaired . | . . . . Time . | . . . . Parts Recycled . | . . . . Recycled Matter . | . . . . Retrieved Matter . | . . . . Retrieved Components . | . . . . Parts Scanalyzed . | . . . . Part Schematics Acquired . | . . . . Parts Damaged . | . . . . Bothacking | -11 -10 -10 -10 ------------ Run | Yrd Mat Min Sub Used RIF Installer . | . . . . Robots Hacked . | . . . . Non-combat . | . . . . Combat . | . . . . Robot Hacks Applied . | . . . . Relay Couplers Released . | . . . . Fabnet Peak Effective % . | . . . . Robots Rewired . | . . . . Allies Hacked . | . . . . Hacks Repelled . | . . . . Allies | -11 -10 -10 -10 -------- Run | Yrd Mat Min Sub Total Allies . | . . . . Largest Group . | . . . . Highest-Rated Group . | . . . . Highest-Rated Ally . | . . . . Total Orders . | . . . . Ally Attacks . | . . . . Total Damage . | . . . . Kills . | . . . . Allies Corrupted . | . . . . Allies Melted . | . . . . Intel | -11 -10 -10 -10 ------- Run | Yrd Mat Min Sub Robot Analysis Total . | . . . . Derelict Logs Recovered 1 | . . 1 . Drone Launches . | . . . . Drone Recoveries . | . . . . Exploration | -11 -10 -10 -10 ------------- Run | Yrd Mat Min Sub Turns Passed 2639 | 45 372 1600 622 Spaces Moved 1511 | 38 292 925 256 Core 5 | 5 . . . Treads 1144 | . . 888 256 Legs . | . . . . Wheels 362 | 33 292 37 . Hover . | . . . . Flight . | . . . . Fastest Speed 50 | 50 95 110 157 Average Speed 153 | 83 100 157 211 Slowest Speed 237 | 95 110 237 237 Overloaded Moves . | . . . . Propulsion Burnouts . | . . . . Robots Hopped . | . . . . Cave-ins Triggered . | . . . . Exploration Rate (%) 44 | 3 54 99 20 Regions Visited 3 Branch Regions 2 Pre-discovered Areas . | . . . . Known Exits Taken . | . . . . Unknown Exits Taken 3 | 1 1 1 . Scrap Searched 2 | . . 2 . Spaces Dug . | . . . . Terrain Destroyed 157 | . 33 44 80 Melee . | . . . . Projectile 1 | . . . 1 AOE 156 | . 33 44 79 Terrain Rammed . | . . . . Walls Destroyed . | . . . . Machines Disabled . | . . . . Actions | -11 -10 -10 -10 --------- Run | Yrd Mat Min Sub Total 1688 | 51 329 1020 288 Wait 20 | . 1 19 . Move 1508 | 37 291 924 256 Hop . | . . . . Pick Up 38 | 8 8 20 2 Fast Attach . | . . . . Attach 15 | 6 1 7 1 Detach . | . . . . Swap 18 | . 4 11 3 Drop 10 | . 1 7 2 Fire 79 | . 23 32 24 Melee . | . . . . Ram . | . . . . Kick . | . . . . Crush . | . . . . Escape Stasis . | . . . . Rewire . | . . . . Trap . | . . . . Miscellaneous . | . . . . Route ------- -11/Scrapyard -10/Materials (discovered 3 exits: [*Mat] / *Min x2) -10/Mines (discovered 3 exits: [*Mat x2] / [*Sub]) -10/Subcaves History --------- Turn | Location | Event 9 | -11/Scrapyard | Discovered new exit (range 15) 46 | -11/Scrapyard | Entered Materials 109 | -10/Materials | Discovered new exit (range 3) 140 | -10/Materials | Discovered new exit (range 16) 288 | -10/Materials | Discovered new exit (range 10) 323 | -10/Materials | Build established: Mutant 418 | -10/Materials | Entered Mines 419 | -10/Mines | Assembled infested the area 474 | -10/Mines | Met a Derelict bent on vengeance 481 | -10/Mines | Core integrity fell below 50% 496 | -10/Mines | Lost 5 parts (1p2n1u1w) 532 | -10/Mines | Discovered new exit (range 10) 560 | -10/Mines | Core integrity fell below 20% 783 | -10/Mines | Learned location of 2 exits from Materials 939 | -10/Mines | Met a Derelict who couldn't figure out how to use a Trap Extractor 1186 | -10/Mines | Discovered new exit (range 11) 1988 | -10/Mines | Discovered new exit (range 14) 2018 | -10/Mines | Entered Subcaves 2218 | -10/Subcaves | A Subdweller sparked back to life 2218 | -10/Subcaves | A Subdweller sparked back to life 2218 | -10/Subcaves | A Subdweller sparked back to life 2302 | -10/Subcaves | Shifting Twisted Machinery released Sub. Optics 2640 | -10/Subcaves | Destroyed by GN-V7H(R) with Subdweller Machine Gun Last Messages --------------- 02311_ Acquired Sub. Optics. 02381_ ZA-77V(R) emerges from the Twisted Machinery. 02390_ Destroyed Disposable Heat Sink. 02393_ ZA-77V(R) destroyed. 02396_ CL-EJK(R) destroyed. 02399_ The unstable cave ceiling collapses. 02411_ Acquired 8 matter. 02412_ The unstable cave ceiling collapses. 02421_ Dropped Imp. Terrain Scanner. 02421_ Dropped Hammer. 02427_ Acquired Grenade Launcher. 02468_ The unstable cave ceiling collapses. 02546_ 1Q-XQR(R) destroyed. 02568_ Acquired 26 matter. 02575_ The unstable cave ceiling collapses. 02589_ Acquired 25 matter. 02591_ The unstable cave ceiling collapses. 02615_ Acquired 17 matter. 02627_ Missile Launcher destroyed. Map ----- +----------------------------------------------------+ | ????????????????????????????????? ##??????????## | | ?????????????????????????????????? ##?######?## | | ?????????????????????????????????? ### #?# | | ?????????????????????? ????????? % ## ### | | ??????????????????????? ???##???# #?# ## | | ???????????????????????# ???# ####" ### # | | ??????????????????????##% %??# " " ## # | | ????????????????????? ?# | | ???????????????????? # & | | ???????????????????? # *%% # ## | | ?????????????????????? ! &%*#### ### | | ?????????????????????#### # ] ## ###% | | ?????????????????????#" ##?## | | ?????????????????????# = ###???### | | ?????????????????????#% % ####???????? | | ?????????????????????#" "# # ### ###?????? | | ?????????????????????#" " ????# # #?????? | | ???????????????????????????????## % ##?????? | | ????????????????????????????????# #?????? | | ?????????????????????????????#### # ##?????? | | ????????????????????????????## ### #?????? | | ????????????????????????????#% ### ##?????? | | ??????????????????#?##??###?## ### ##?##???? | | ????????????????### # ### #### ### #?# #???? | | ??????? ## ## ## ## #???? | | ??????? R @ % ## #???? | | ??????? ## # ## # #???? | | ??????? ???????####### ## ##??? | | ????????????????????????# ###? | | ????????????????????????## ## | | ?????????????????????#### & # ### | | ????????????????????## ### * ## # ##??# | | ????????????????????# # ## ##???? | | ???????????????????## #### #?????? | | ???????????????????# ### #??????? | | ???????????????????# ## ##???????? | | ??????????????????## ## # #???????? | | ????????????????### ##### # "????? | | ?####??????????## ##??# ####""#???? | | ## ##?????##### ##??## #????##???? | | # ####?## # "##?????????? | | # ## ### ## ## ###"#??????????? | | *# ### #### ###?# ?????????? | | !/ ##?# #??## ##???# ????????? | | #?## #???# #????## #"#???????? | | ### ##?# ## #???## #??????####???????? | | #?########?# ######????## #?????????????????? | | ##??????????###????????????##?????????????????? | | # ##?????????????????????????????????????????????? | | ###??????????????????????????????????????????????? | +----------------------------------------------------+ Best States ------------- Heat Dissipation 25 Energy Generation 18 Energy Capacity 250 Matter Stores 300 Matter Capacity 300 Sight Range 16 Terrain Scan Density 10 Armor Coverage 150 Core Shielding 20 Evasion (%) 44 Targeting Accuracy 5 Recoil Reduction 2 Item Schematics ----------------- None Robot Schematics ------------------ None Fabricated ------------ Nothing Alien Tech Used ----------------- None Achievements -------------- I Survived The Infestation Challenges ------------ None Game ------ Seed ExoskeletonTimingMatrix Manual? 0 Play Time 00:24:53 Cumulative 9.9 hours Start 2024.04.16 @ 22:45:01 End 2024.04.16 @ 23:08:18 Sessions 1 Manual Loads 0 Difficulty Rogue Special Mode None Game No. 16 Rogue 16 Adventurer 0 Explorer 0 Win Type - Total 0 Types 0/0/0/0/0/0/0/0/0 Lore% 4 Gallery% 12 Achievement% 13 Wizard Run 0 Options --------- Layout 1 ASCII 0 Keyboard 0 Movement Numpad Keybinds 0 Fullscreen 1 Font 24/Smallcaps Map View 50x35 Zoom Use 0% Tactical HUD 1 Map Filters NONE Filters NONE Steam 1 RUN: d3a5909d-7aac-488b-960c-f7ed083dbe8f